[Event "Pervenstvo PFO 2023_Y19_Rapid"]
[Site "Samara region, Russia"]
[Date "2023.11.11"]
[Round "3.3"]
[White "Lydin, Vladislav"]
[Black "Kunakkuzin, Rinat"]
[Result "1-0"]
[TimeControl "10:5"]
[WhiteFideId "44195990"]
[BlackFideId "54126584"]
[WhiteElo "2005"]
[BlackElo "1925"]

1. Nf3 {[%clk 00:10:08]} {[%emt 00:00:02]} d5 {[%clk 00:10:09]} 2. g3 {[%clk
00:10:11]} {[%emt 00:00:01]} g6 {[%clk 00:10:13]} 3. Bg2 {[%clk 00:10:15]}
{[%emt 00:00:02]} Bg7 {[%clk 00:10:17]} {[%emt 00:00:01]} 4. c4 {[%clk
00:10:19]} {[%emt 00:00:01]} dxc4 {[%clk 00:10:21]} {[%emt 00:00:02]} 5. O-O
{[%clk 00:10:22]} {[%emt 00:00:01]} e5 {[%clk 00:10:24]} {[%emt 00:00:02]} 6.
Qa4+ {[%clk 00:10:21]} {[%emt 00:00:06]} Nc6 {[%clk 00:10:23]} {[%emt
00:00:07]} 7. Qxc4 {[%clk 00:10:25]} {[%emt 00:00:02]} Nge7 {[%clk 00:10:24]}
{[%emt 00:00:03]} 8. d3 {[%clk 00:10:23]} {[%emt 00:00:06]} Be6 {[%clk
00:10:25]} {[%emt 00:00:04]} 9. Qc2 {[%clk 00:10:27]} h6 {[%clk 00:10:27]}
{[%emt 00:00:04]} 10. Nc3 {[%clk 00:10:00]} {[%emt 00:00:32]} O-O {[%clk
00:10:29]} {[%emt 00:00:03]} 11. Rb1 {[%clk 00:10:03]} {[%emt 00:00:02]} Nd4
{[%clk 00:10:32]} {[%emt 00:00:02]} 12. Qd1 {[%clk 00:10:04]} {[%emt 00:00:04]}
a5 {[%clk 00:10:22]} {[%emt 00:00:14]} 13. b3 {[%clk 00:09:42]} {[%emt
00:00:27]} Qd7 {[%clk 00:10:05]} {[%emt 00:00:23]} 14. Ne4 {[%clk 00:09:40]}
{[%emt 00:00:07]} b6 {[%clk 00:09:51]} {[%emt 00:00:19]} 15. Nxd4 {[%clk
00:09:03]} {[%emt 00:00:41]} exd4 {[%clk 00:09:53]} {[%emt 00:00:04]} 16. Bxh6
{[%clk 00:09:06]} {[%emt 00:00:02]} Bh3 {[%clk 00:09:26]} {[%emt 00:00:32]} 17.
Qd2 {[%clk 00:08:56]} {[%emt 00:00:15]} Bxg2 {[%clk 00:09:00]} {[%emt
00:00:31]} 18. Kxg2 {[%clk 00:08:58]} {[%emt 00:00:02]} Nf5 {[%clk 00:08:56]}
{[%emt 00:00:10]} 19. Bxg7 {[%clk 00:08:57]} {[%emt 00:00:06]} Kxg7 {[%clk
00:08:59]} {[%emt 00:00:02]} 20. Qf4 {[%clk 00:08:32]} {[%emt 00:00:27]} Rae8
{[%clk 00:08:36]} {[%emt 00:00:31]} 21. h4 {[%clk 00:08:13]} {[%emt 00:00:24]}
c5 {[%clk 00:08:15]} {[%emt 00:00:26]} 22. h5 {[%clk 00:08:05]} {[%emt
00:00:13]} Rh8 {[%clk 00:08:07]} {[%emt 00:00:13]} 23. Rh1 {[%clk 00:08:06]}
{[%emt 00:00:03]} Qd5 {[%clk 00:07:07]} {[%emt 00:01:05]} 24. g4 {[%clk
00:07:45]} {[%emt 00:00:27]} Nh6 {[%clk 00:06:02]} {[%emt 00:01:10]} 25. Qf6+
{[%clk 00:06:58]} {[%emt 00:00:52]} Kg8 {[%clk 00:05:41]} {[%emt 00:00:26]} 26.
hxg6 {[%clk 00:06:45]} {[%emt 00:00:18]} Rxe4 {[%clk 00:05:05]} {[%emt
00:00:41]} 27. gxf7+ {[%clk 00:06:48]} {[%emt 00:00:03]} Nxf7 {[%clk 00:04:37]}
{[%emt 00:00:33]} 28. Qg6+ {[%clk 00:06:51]} {[%emt 00:00:01]} Kf8 {[%clk
00:04:37]} {[%emt 00:00:05]} 29. dxe4 {[%clk 00:06:53]} {[%emt 00:00:03]} Rxh1
{[%clk 00:03:47]} {[%emt 00:00:55]} 30. exd5 {[%clk 00:06:54]} {[%emt
00:00:04]} 1-0

[Event "Pervenstvo PFO 2023_Y19_Rapid"]
[Site "Samara region, Russia"]
[Date "2023.11.11"]
[Round "3.4"]
[White "Sadykov, Ilgiz A."]
[Black "Evtukhov, Lev"]
[Result "1/2-1/2"]
[TimeControl "10:5"]
[WhiteFideId "34286217"]
[BlackFideId "44173210"]
[WhiteElo "1675"]
[BlackElo "1923"]

1. d4 {[%clk 00:10:06]} {[%emt 00:00:03]} d5 {[%clk 00:10:09]} {[%emt
00:00:01]} 2. c4 {[%clk 00:10:10]} {[%emt 00:00:02]} e6 {[%clk 00:10:13]} 3.
Nc3 {[%clk 00:10:13]} {[%emt 00:00:02]} Nf6 {[%clk 00:10:16]} {[%emt 00:00:01]}
4. Bg5 {[%clk 00:10:16]} {[%emt 00:00:02]} Be7 {[%clk 00:10:19]} 5. e3 {[%clk
00:10:20]} {[%emt 00:00:02]} O-O {[%clk 00:09:48]} {[%emt 00:00:36]} 6. Nf3
{[%clk 00:10:23]} {[%emt 00:00:02]} h6 {[%clk 00:09:48]} {[%emt 00:00:05]} 7.
Bf4 {[%clk 00:10:14]} {[%emt 00:00:14]} dxc4 {[%clk 00:08:00]} {[%emt
00:01:53]} 8. Bxc4 {[%clk 00:10:16]} {[%emt 00:00:03]} Nd5 {[%clk 00:08:03]}
{[%emt 00:00:02]} 9. Bg3 {[%clk 00:10:10]} {[%emt 00:00:11]} Nxc3 {[%clk
00:07:59]} {[%emt 00:00:09]} 10. bxc3 {[%clk 00:10:13]} {[%emt 00:00:01]} c5
{[%clk 00:08:02]} {[%emt 00:00:02]} 11. O-O {[%clk 00:10:14]} {[%emt 00:00:05]}
Nc6 {[%clk 00:07:59]} {[%emt 00:00:07]} 12. e4 {[%clk 00:10:08]} {[%emt
00:00:11]} cxd4 {[%clk 00:05:47]} {[%emt 00:02:18]} 13. cxd4 {[%clk 00:10:11]}
{[%emt 00:00:02]} b6 {[%clk 00:05:51]} {[%emt 00:00:01]} 14. Rc1 {[%clk
00:09:10]} {[%emt 00:01:06]} Na5 {[%clk 00:05:50]} {[%emt 00:00:06]} 15. Bb5
{[%clk 00:08:01]} {[%emt 00:01:14]} Bd6 {[%clk 00:03:49]} {[%emt 00:02:06]} 16.
Ne5 {[%clk 00:07:50]} {[%emt 00:00:16]} a6 {[%clk 00:03:27]} {[%emt 00:00:26]}
17. Nc6 {[%clk 00:07:23]} {[%emt 00:00:32]} Nxc6 {[%clk 00:03:25]} {[%emt
00:00:07]} 18. Bxc6 {[%clk 00:07:26]} {[%emt 00:00:01]} Rb8 {[%clk 00:02:51]}
{[%emt 00:00:39]} 19. Qd2 {[%clk 00:06:39]} {[%emt 00:00:52]} Bb7 {[%clk
00:02:25]} {[%emt 00:00:31]} 20. d5 {[%clk 00:06:17]} {[%emt 00:00:27]} exd5
{[%clk 00:02:16]} {[%emt 00:00:13]} 21. exd5 {[%clk 00:06:11]} {[%emt
00:00:12]} Bc8 {[%clk 00:01:56]} {[%emt 00:00:26]} 22. Qd3 {[%clk 00:05:51]}
{[%emt 00:00:24]} b5 {[%clk 00:01:36]} {[%emt 00:00:25]} 23. Rfe1 {[%clk
00:05:42]} {[%emt 00:00:13]} Bg4 {[%clk 00:01:16]} {[%emt 00:00:25]} 24. a4
{[%clk 00:05:33]} {[%emt 00:00:15]} b4 {[%clk 00:01:06]} {[%emt 00:00:15]} 25.
Qxa6 {[%clk 00:05:32]} {[%emt 00:00:06]} b3 {[%clk 00:00:59]} {[%emt 00:00:12]}
26. Qd3 {[%emt 00:01:13]} Bh5 {[%clk 00:00:38]} {[%emt 00:00:01]} 27. Bxd6
{[%clk 00:03:33]} {[%emt 00:01:20]} Qxd6 {[%clk 00:00:41]} {[%emt 00:00:02]} 28.
Bb5 {[%clk 00:03:36]} {[%emt 00:00:03]} b2 {[%clk 00:00:31]} {[%emt 00:00:14]}
29. Rc6 {[%clk 00:03:15]} {[%emt 00:00:26]} Qb4 {[%clk 00:00:28]} {[%emt
00:00:09]} 30. Qb1 {[%clk 00:02:36]} {[%emt 00:00:44]} Bg6 {[%clk 00:00:24]}
{[%emt 00:00:08]} 31. Rxg6 {[%clk 00:02:39]} {[%emt 00:00:02]} fxg6 {[%clk
00:00:28]} 32. Re2 {[%clk 00:02:02]} {[%emt 00:00:42]} Rxb5 {[%clk 00:00:20]}
{[%emt 00:00:14]} 33. axb5 {[%clk 00:02:01]} {[%emt 00:00:06]} Qxb5 {[%emt
00:00:01]} 1/2-1/2

[Event "Pervenstvo PFO 2023_Y19_Rapid"]
[Site "Samara region, Russia"]
[Date "2023.11.11"]
[Round "3.5"]
[White "Azizyan, Levon"]
[Black "Panteleev, Zakhar"]
[Result "1-0"]
[TimeControl "10:5"]
[WhiteFideId "44151888"]
[BlackFideId "34483977"]
[WhiteElo "1940"]
[BlackElo "1556"]

1. e4 {[%clk 00:10:07]} {[%emt 00:00:02]} c5 {[%clk 00:10:08]} {[%emt
00:00:01]} 2. Nf3 {[%clk 00:10:11]} {[%emt 00:00:02]} Nc6 {[%clk 00:10:12]} 3.
Bb5 {[%clk 00:10:14]} {[%emt 00:00:01]} g6 {[%clk 00:10:16]} {[%emt 00:00:02]}
4. c3 {[%clk 00:10:17]} {[%emt 00:00:02]} Bg7 {[%clk 00:10:19]} {[%emt
00:00:01]} 5. d4 {[%clk 00:10:16]} {[%emt 00:00:07]} d5 {[%clk 00:09:48]}
{[%emt 00:00:36]} 6. dxc5 {[%clk 00:08:40]} {[%emt 00:01:41]} dxe4 {[%clk
00:08:09]} {[%emt 00:01:44]} 7. Qxd8+ {[%clk 00:08:35]} {[%emt 00:00:09]} Kxd8
{[%clk 00:08:13]} {[%emt 00:00:02]} 8. Ng5 {[%clk 00:08:23]} {[%emt 00:00:18]}
Ke8 {[%clk 00:05:07]} {[%emt 00:03:10]} 9. Nxe4 {[%clk 00:08:26]} {[%emt
00:00:02]} f5 {[%clk 00:04:58]} {[%emt 00:00:15]} 10. Ng3 {[%clk 00:07:57]}
{[%emt 00:00:33]} e5 {[%clk 00:04:43]} {[%emt 00:00:20]} 11. Nd2 {[%clk
00:07:58]} {[%emt 00:00:04]} Nf6 {[%clk 00:03:42]} {[%emt 00:01:06]} 12. Nc4
{[%clk 00:07:52]} {[%emt 00:00:11]} Nd7 {[%clk 00:01:24]} {[%emt 00:02:23]} 13.
Nd6+ {[%clk 00:05:47]} {[%emt 00:02:11]} Kf8 {[%clk 00:01:24]} {[%emt
00:00:05]} 14. b4 {[%clk 00:05:29]} {[%emt 00:00:23]} e4 {[%clk 00:01:22]}
{[%emt 00:00:06]} 15. Bd2 {[%clk 00:05:32]} {[%emt 00:00:02]} Nxb4 {[%clk
00:00:25]} {[%emt 00:01:02]} 16. cxb4 {[%clk 00:05:36]} Bxa1 {[%clk 00:00:29]}
{[%emt 00:00:01]} 17. Nxc8 {[%clk 00:05:40]} {[%emt 00:00:02]} Rxc8 {[%clk
00:00:30]} {[%emt 00:00:03]} 18. Bxd7 {[%clk 00:05:43]} {[%emt 00:00:02]} Rd8
{[%clk 00:00:30]} {[%emt 00:00:05]} 19. Ba4 {[%clk 00:05:31]} {[%emt 00:00:16]}
Kg7 {[%clk 00:00:21]} {[%emt 00:00:15]} 20. Ke2 {[%clk 00:05:09]} {[%emt
00:00:27]} Be5 {[%clk 00:00:20]} {[%emt 00:00:06]} 21. Rb1 {[%clk 00:02:58]}
{[%emt 00:02:16]} Bd4 {[%clk 00:00:15]} {[%emt 00:00:09]} 22. Bg5 {[%clk
00:02:37]} {[%emt 00:00:27]} Bf6 {[%clk 00:00:16]} {[%emt 00:00:04]} 23. Bxf6+
{[%clk 00:02:23]} {[%emt 00:00:19]} Kxf6 {[%clk 00:00:20]} {[%emt 00:00:01]} 24.
Nf1 {[%clk 00:01:58]} {[%emt 00:00:30]} Rd4 {[%clk 00:00:19]} {[%emt 00:00:05]}
25. g3 {[%clk 00:01:30]} {[%emt 00:00:34]} Rhd8 {[%clk 00:00:22]} {[%emt
00:00:02]} 26. h4 {[%clk 00:01:15]} {[%emt 00:00:20]} h6 {[%clk 00:00:26]}
{[%emt 00:00:01]} 27. a3 {[%clk 00:01:18]} {[%emt 00:00:02]} g5 {[%clk
00:00:30]} {[%emt 00:00:01]} 28. hxg5+ {[%clk 00:01:22]} {[%emt 00:00:01]} hxg5
{[%clk 00:00:34]} 29. Rd1 {[%clk 00:00:54]} {[%emt 00:00:33]} Ke5 {[%clk
00:00:20]} {[%emt 00:00:19]} 30. Nd2 {[%clk 00:00:42]} {[%emt 00:00:17]} Rd3
{[%clk 00:00:08]} {[%emt 00:00:17]} 31. Nc4+ {[%clk 00:00:38]} {[%emt
00:00:09]} Kd4 {[%clk 00:00:13]} 32. Nd6 {[%clk 00:00:34]} {[%emt 00:00:10]} f4
{[%clk 00:00:08]} {[%emt 00:00:10]} 33. gxf4 {[%clk 00:00:32]} {[%emt
00:00:06]} gxf4 {[%clk 00:00:11]} {[%emt 00:00:01]} 34. Rxd3+ {[%clk 00:00:26]}
{[%emt 00:00:12]} exd3+ {[%clk 00:00:15]} {[%emt 00:00:02]} 35. Kd2 {[%clk
00:00:30]} b6 {[%clk 00:00:18]} {[%emt 00:00:01]} 36. c6 {[%clk 00:00:23]}
{[%emt 00:00:12]} Rxd6 {[%clk 00:00:11]} {[%emt 00:00:12]} 37. c7 {[%clk
00:00:27]} Re6 {[%clk 00:00:15]} {[%emt 00:00:02]} 38. c8=Q {[%clk 00:00:30]}
{[%emt 00:00:02]} Re2+ {[%clk 00:00:19]} {[%emt 00:00:01]} 39. Kd1 {[%clk
00:00:34]} 1-0

[Event "Pervenstvo PFO 2023_Y19_Rapid"]
[Site "Samara region, Russia"]
[Date "2023.11.11"]
[Round "3.6"]
[White "Mochalov, Dmitriy"]
[Black "Gimazetdinov, Amir"]
[Result "1-0"]
[TimeControl "10:5"]
[WhiteFideId "44179634"]
[BlackFideId "54142440"]
[WhiteElo "2194"]
[BlackElo "1749"]

1. e4 {[%clk 00:10:08]} c5 {[%clk 00:10:09]} {[%emt 00:00:02]} 2. Nf3 {[%clk
00:10:11]} {[%emt 00:00:02]} d6 {[%clk 00:10:13]} 3. Bb5+ {[%clk 00:10:14]}
{[%emt 00:00:03]} Nd7 {[%clk 00:10:17]} {[%emt 00:00:01]} 4. c3 {[%clk
00:10:17]} {[%emt 00:00:02]} a6 {[%clk 00:10:18]} {[%emt 00:00:04]} 5. Ba4
{[%clk 00:10:22]} Ngf6 {[%clk 00:10:13]} {[%emt 00:00:10]} 6. Bc2 {[%clk
00:10:26]} g6 {[%clk 00:10:15]} {[%emt 00:00:02]} 7. O-O {[%clk 00:10:29]}
{[%emt 00:00:02]} Bg7 {[%clk 00:10:20]} 8. Re1 {[%clk 00:10:34]} {[%emt
00:00:02]} O-O {[%clk 00:10:22]} {[%emt 00:00:02]} 9. d4 {[%clk 00:10:38]} cxd4
{[%clk 00:10:24]} {[%emt 00:00:04]} 10. cxd4 {[%clk 00:10:42]} e5 {[%clk
00:10:27]} {[%emt 00:00:01]} 11. Nbd2 {[%clk 00:10:19]} {[%emt 00:00:28]} b5
{[%clk 00:10:28]} {[%emt 00:00:05]} 12. Nf1 {[%clk 00:10:23]} {[%emt 00:00:02]}
Bb7 {[%clk 00:10:31]} {[%emt 00:00:01]} 13. Ng3 {[%clk 00:10:27]} Rc8 {[%clk
00:10:28]} {[%emt 00:00:09]} 14. b3 {[%clk 00:10:24]} {[%emt 00:00:07]} Qc7
{[%clk 00:10:16]} {[%emt 00:00:16]} 15. Bd3 {[%clk 00:10:27]} {[%emt 00:00:03]}
exd4 {[%clk 00:10:14]} {[%emt 00:00:08]} 16. Bb2 {[%clk 00:10:30]} {[%emt
00:00:01]} Ne5 {[%clk 00:10:17]} {[%emt 00:00:02]} 17. Bxd4 {[%clk 00:10:27]}
{[%emt 00:00:09]} Nxd3 {[%clk 00:10:13]} {[%emt 00:00:09]} 18. Qxd3 {[%clk
00:10:30]} Qc2 {[%clk 00:10:17]} 19. Qe3 {[%clk 00:10:16]} {[%emt 00:00:19]}
Ng4 {[%clk 00:10:14]} {[%emt 00:00:07]} 20. Qf4 {[%clk 00:10:20]} {[%emt
00:00:02]} Bxd4 {[%clk 00:10:13]} {[%emt 00:00:06]} 21. Nxd4 {[%clk 00:10:23]}
{[%emt 00:00:02]} Qc3 {[%clk 00:10:01]} {[%emt 00:00:16]} 22. Rad1 {[%clk
00:10:02]} {[%emt 00:00:28]} Ne5 {[%clk 00:09:55]} {[%emt 00:00:10]} 23. Qf6
{[%clk 00:10:04]} {[%emt 00:00:03]} Nd3 {[%clk 00:09:23]} {[%emt 00:00:37]} 24.
Re3 {[%clk 00:09:58]} {[%emt 00:00:11]} Bxe4 {[%clk 00:08:29]} {[%emt
00:00:59]} 25. Nxe4 {[%clk 00:10:00]} {[%emt 00:00:04]} Rfe8 {[%clk 00:08:31]}
{[%emt 00:00:02]} 26. Nxc3 {[%clk 00:10:03]} {[%emt 00:00:02]} 1-0

[Event "Pervenstvo PFO 2023_Y19_Rapid"]
[Site "Samara region, Russia"]
[Date "2023.11.11"]
[Round "3.7"]
[White "Pukhov, Ivan"]
[Black "Nigmadzyanov, Ruslan R."]
[Result "1-0"]
[TimeControl "10:5"]
[WhiteFideId "34301895"]
[BlackFideId "34224670"]
[WhiteElo "1955"]
[BlackElo "1542"]

1. d4 {[%clk 00:10:10]} {[%emt 00:06:46]} Nf6 {[%clk 00:10:08]} {[%emt
00:00:02]} 2. c4 {[%clk 00:10:14]} g6 {[%clk 00:10:12]} {[%emt 00:00:03]} 3. g3
{[%clk 00:10:18]} {[%emt 00:00:01]} c6 {[%clk 00:10:15]} {[%emt 00:00:02]} 4.
Nf3 {[%clk 00:10:20]} {[%emt 00:00:02]} d5 {[%clk 00:10:18]} {[%emt 00:00:02]}
5. Bg2 {[%clk 00:10:24]} {[%emt 00:00:02]} Bg7 {[%clk 00:10:22]} 6. O-O {[%clk
00:10:26]} {[%emt 00:00:03]} dxc4 {[%clk 00:10:21]} {[%emt 00:00:06]} 7. a4
{[%clk 00:09:46]} {[%emt 00:00:45]} a5 {[%clk 00:10:20]} {[%emt 00:00:06]} 8.
Na3 {[%clk 00:09:41]} {[%emt 00:00:10]} Be6 {[%clk 00:10:11]} {[%emt 00:00:13]}
9. Ng5 {[%clk 00:08:43]} {[%emt 00:01:04]} Bd5 {[%clk 00:09:39]} {[%emt
00:00:37]} 10. e4 {[%clk 00:08:46]} {[%emt 00:00:03]} h6 {[%clk 00:09:43]}
{[%emt 00:00:01]} 11. exd5 {[%clk 00:08:50]} {[%emt 00:00:01]} hxg5 {[%clk
00:09:46]} {[%emt 00:00:02]} 12. dxc6 {[%clk 00:08:50]} {[%emt 00:00:05]} Nxc6
{[%clk 00:09:49]} {[%emt 00:00:02]} 13. Bxg5 {[%clk 00:06:17]} {[%emt
00:02:37]} Nxd4 {[%clk 00:09:24]} {[%emt 00:00:30]} 14. Nxc4 {[%clk 00:06:06]}
{[%emt 00:00:16]} Ne6 {[%clk 00:07:00]} {[%emt 00:02:29]} 15. Qxd8+ {[%clk
00:03:13]} {[%emt 00:02:59]} Rxd8 {[%clk 00:06:13]} {[%emt 00:00:52]} 16. Be3
{[%clk 00:03:06]} {[%emt 00:00:12]} Ng4 {[%clk 00:05:46]} {[%emt 00:00:31]} 17.
Bb6 {[%clk 00:02:51]} {[%emt 00:00:21]} Rc8 {[%clk 00:03:05]} {[%emt 00:02:46]}
18. Rac1 {[%clk 00:02:37]} {[%emt 00:00:19]} Kf8 {[%clk 00:00:36]} {[%emt
00:02:34]} 19. Ne3 {[%clk 00:01:42]} {[%emt 00:01:00]} Rxc1 {[%clk 00:00:11]}
{[%emt 00:00:30]} 20. Rxc1 {[%clk 00:01:46]} Nf6 {[%clk 00:00:06]} {[%emt
00:00:11]} 21. Rc8+ {[%clk 00:01:48]} {[%emt 00:00:04]} Ne8 {[%clk 00:00:09]}
22. Bxb7 {[%clk 00:01:31]} {[%emt 00:00:22]} Bxb2 {[%clk 00:00:13]} {[%emt
00:00:01]} 23. Bc6 {[%clk 00:01:14]} {[%emt 00:00:21]} N6g7 {[%clk 00:00:18]}
{[%emt 00:00:01]} 24. Bxa5 {[%clk 00:00:28]} {[%emt 00:00:52]} Rh5 {[%clk
00:00:20]} {[%emt 00:00:02]} 25. Bb4 {[%clk 00:00:26]} {[%emt 00:00:07]} Bd4
{[%clk 00:00:10]} {[%emt 00:00:15]} 26. Nd5 {[%clk 00:00:19]} {[%emt 00:00:12]}
Rf5 {[%clk 00:00:08]} {[%emt 00:00:07]} 27. Bxe7+ {[%clk 00:00:09]} {[%emt
00:00:14]} Kg8 {[%clk 00:00:12]} 28. Bxe8 {[%clk 00:00:13]} {[%emt 00:00:02]}
Rxf2 {[%clk 00:00:07]} {[%emt 00:00:10]} 29. Bxf7+ {[%clk 00:00:08]} {[%emt
00:00:11]} Kh7 {[%clk 00:00:10]} 30. Nf6+ {[%clk 00:00:10]} {[%emt 00:00:03]}
Kh6 {[%clk 00:00:14]} {[%emt 00:00:02]} 31. Rh8+ {[%clk 00:00:13]} Kg5 {[%clk
00:00:17]} 32. Ne4+ {[%clk 00:00:16]} {[%emt 00:00:02]} Kh6 {[%emt 00:00:04]}
33. Rc8 Kh7 34. Nf6+ Rxf6+ {[%clk 00:10:05]} 1-0

[Event "Pervenstvo PFO 2023_Y19_Rapid"]
[Site "Samara region, Russia"]
[Date "2023.11.11"]
[Round "3.8"]
[White "Galyaviev, Samat"]
[Black "Davydov, Dmitriy"]
[Result "1-0"]
[TimeControl "10:5"]
[WhiteFideId "44168470"]
[BlackFideId "54185580"]
[WhiteElo "2030"]
[BlackElo "1573"]

1. d4 {[%emt 00:06:56]} Nf6 {[%emt 00:00:02]} 2. Nf3 {[%emt 00:00:02]} e6
{[%emt 00:00:01]} 3. Bf4 b6 {[%emt 00:00:10]} 4. e3 {[%emt 00:00:01]} Bb7
{[%emt 00:00:01]} 5. Bd3 {[%emt 00:00:01]} d5 {[%emt 00:00:18]} 6. Nbd2 {[%emt
00:00:03]} Be7 {[%emt 00:00:01]} 7. Ne5 {[%emt 00:00:03]} O-O {[%emt 00:00:09]}
8. Qf3 {[%emt 00:00:02]} c5 {[%emt 00:00:30]} 9. c3 {[%emt 00:00:01]} Nbd7
{[%emt 00:00:46]} 10. Qh3 {[%emt 00:00:02]} g6 {[%emt 00:00:59]} 11. Ndf3
{[%emt 00:00:58]} Ne4 {[%emt 00:02:01]} 12. Nxd7 {[%emt 00:01:57]} Qxd7 {[%emt
00:00:03]} 13. Ne5 {[%emt 00:00:01]} Qd8 {[%emt 00:00:10]} 14. f3 {[%emt
00:00:04]} Nf6 {[%emt 00:01:25]} 15. Bh6 {[%emt 00:00:10]} Re8 {[%emt
00:00:08]} 16. Bb5 Qc7 {[%emt 00:00:53]} 17. Bxe8 {[%emt 00:00:12]} Rxe8 {[%emt
00:00:01]} 18. O-O {[%emt 00:00:12]} cxd4 {[%emt 00:00:14]} 19. exd4 {[%emt
00:00:02]} b5 {[%emt 00:00:40]} 20. a3 {[%emt 00:00:21]} Qb6 {[%emt 00:00:26]}
21. Bg5 {[%emt 00:00:25]} Rd8 {[%emt 00:00:22]} 22. Qh4 {[%emt 00:00:33]} Kg7
{[%emt 00:00:02]} 23. Ng4 {[%emt 00:00:17]} e5 {[%emt 00:00:25]} 24. Nxf6
{[%emt 00:00:43]} Bxf6 {[%emt 00:00:02]} 25. Bxf6+ Qxf6 {[%emt 00:00:01]} 26.
Qxf6+ {[%emt 00:00:01]} Kxf6 27. dxe5+ Kxe5 {[%emt 00:00:02]} 28. Rfe1+ Kd6
{[%emt 00:00:03]} 29. Rad1 {[%emt 00:00:04]} Bc6 {[%emt 00:00:19]} 30. Rd4 a5
{[%emt 00:00:24]} 31. Kf2 {[%emt 00:00:05]} Rb8 {[%emt 00:00:08]} 32. Rf4
{[%emt 00:00:14]} f5 {[%emt 00:00:14]} 33. g4 {[%emt 00:00:17]} Bd7 {[%emt
00:00:01]} 34. h4 {[%emt 00:00:16]} h6 {[%emt 00:00:16]} 35. gxf5 {[%emt
00:00:26]} gxf5 {[%emt 00:00:40]} 36. Rd4 {[%emt 00:00:13]} Rc8 {[%emt
00:00:20]} 37. Rg1 {[%emt 00:00:05]} Ke5 {[%emt 00:00:35]} 38. Rg6 {[%emt
00:00:18]} f4 {[%emt 00:00:05]} 39. Rxh6 {[%emt 00:00:05]} Bf5 {[%emt
00:00:06]} 40. Rb6 {[%emt 00:00:10]} Rc5 {[%emt 00:00:02]} 41. h5 {[%emt
00:00:13]} Bd7 {[%emt 00:00:13]} 42. Rg6 {[%emt 00:00:23]} Bf5 {[%emt
00:00:02]} 43. Rg7 {[%emt 00:00:14]} Kf6 {[%emt 00:00:04]} 44. h6 {[%emt
00:00:01]} Rc8 {[%emt 00:00:09]} 45. Rxf4 {[%emt 00:00:06]} Ke5 {[%emt
00:00:04]} 46. Rh4 {[%emt 00:00:05]} Rh8 {[%emt 00:00:02]} 47. h7 {[%emt
00:00:07]} Kf6 48. Ra7 {[%emt 00:00:03]} Kg5 {[%emt 00:00:02]} 49. Rh2 {[%emt
00:00:03]} a4 {[%emt 00:00:03]} 50. Ke3 {[%emt 00:00:07]} Kf6 {[%emt 00:00:08]}
51. Kd4 {[%emt 00:00:04]} Ke6 {[%emt 00:00:01]} 52. Rh6+ {[%emt 00:00:10]} 1-0

[Event "Pervenstvo PFO 2023_Y19_Rapid"]
[Site "Samara region, Russia"]
[Date "2023.11.11"]
[Round "3.9"]
[White "Kononenko, Nikita"]
[Black "Kurulev, Egor"]
[Result "0-1"]
[TimeControl "10:5"]
[WhiteFideId "54175682"]
[BlackFideId "34187097"]
[WhiteElo "1774"]
[BlackElo "1332"]

1. e4 {[%clk 00:10:08]} {[%emt 00:00:01]} d6 {[%clk 00:10:09]} 2. d4 {[%clk
00:10:12]} {[%emt 00:00:01]} Nf6 {[%clk 00:10:13]} {[%emt 00:00:01]} 3. Nc3
{[%clk 00:10:15]} {[%emt 00:00:01]} c6 {[%clk 00:10:17]} {[%emt 00:00:01]} 4.
f3 {[%clk 00:10:18]} {[%emt 00:00:03]} Qc7 {[%clk 00:10:21]} {[%emt 00:00:01]}
5. Bc4 {[%clk 00:10:16]} {[%emt 00:00:07]} e5 {[%clk 00:10:18]} {[%emt
00:00:07]} 6. dxe5 {[%clk 00:10:14]} {[%emt 00:00:07]} dxe5 {[%clk 00:10:22]}
{[%emt 00:00:02]} 7. a4 {[%clk 00:10:18]} Bc5 {[%clk 00:10:17]} {[%emt
00:00:10]} 8. Qe2 {[%clk 00:09:17]} {[%emt 00:01:06]} O-O {[%clk 00:09:14]}
{[%emt 00:01:08]} 9. a5 {[%clk 00:09:13]} {[%emt 00:00:09]} Bb4 {[%clk
00:08:49]} {[%emt 00:00:30]} 10. a6 {[%clk 00:08:42]} {[%emt 00:00:36]} Nxa6
{[%clk 00:08:49]} {[%emt 00:00:05]} 11. Bxa6 {[%clk 00:08:46]} {[%emt
00:00:02]} bxa6 {[%clk 00:08:53]} {[%emt 00:00:01]} 12. Be3 {[%clk 00:08:42]}
{[%emt 00:00:08]} a5 {[%clk 00:08:48]} {[%emt 00:00:11]} 13. Qf2 {[%clk
00:08:30]} {[%emt 00:00:16]} Be6 {[%clk 00:08:00]} {[%emt 00:00:53]} 14. Nge2
{[%clk 00:08:33]} {[%emt 00:00:02]} Rfd8 {[%clk 00:07:51]} {[%emt 00:00:15]} 15.
O-O {[%clk 00:08:34]} {[%emt 00:00:03]} h6 {[%clk 00:07:45]} {[%emt 00:00:11]}
16. Na4 {[%clk 00:08:23]} {[%emt 00:00:17]} Nd7 {[%clk 00:07:15]} {[%emt
00:00:35]} 17. Rfd1 {[%clk 00:08:22]} {[%emt 00:00:05]} Qb7 {[%clk 00:05:46]}
{[%emt 00:01:35]} 18. Ng3 {[%clk 00:07:51]} {[%emt 00:00:35]} Qb5 {[%clk
00:05:34]} {[%emt 00:00:17]} 19. Nh5 {[%clk 00:06:40]} {[%emt 00:01:16]} g6
{[%clk 00:05:08]} {[%emt 00:00:31]} 20. Ng3 {[%clk 00:03:23]} {[%emt 00:03:23]}
Kh7 {[%clk 00:05:09]} {[%emt 00:00:04]} 21. h4 {[%clk 00:03:23]} {[%emt
00:00:04]} Nb6 {[%clk 00:05:07]} {[%emt 00:00:08]} 22. Rxd8 {[%clk 00:02:53]}
{[%emt 00:00:36]} Rxd8 {[%clk 00:05:09]} {[%emt 00:00:03]} 23. Nxb6 {[%clk
00:02:56]} {[%emt 00:00:02]} axb6 {[%clk 00:05:11]} {[%emt 00:00:03]} 24. Bxb6
{[%clk 00:02:58]} {[%emt 00:00:02]} Rd2 {[%clk 00:05:08]} {[%emt 00:00:08]} 25.
Qe3 {[%clk 00:02:56]} {[%emt 00:00:07]} Rxc2 {[%clk 00:05:10]} {[%emt
00:00:04]} 26. Kh2 {[%clk 00:02:07]} {[%emt 00:00:54]} Bd2 {[%clk 00:04:59]}
{[%emt 00:00:15]} 27. Qg1 {[%clk 00:01:40]} {[%emt 00:00:32]} Rxb2 {[%clk
00:04:43]} {[%emt 00:00:21]} 28. h5 {[%clk 00:01:28]} {[%emt 00:00:17]} Qxb6
{[%clk 00:04:39]} {[%emt 00:00:09]} 29. hxg6+ {[%clk 00:01:32]} {[%emt
00:00:02]} Kxg6 {[%clk 00:04:34]} {[%emt 00:00:10]} 30. Qh1 {[%clk 00:00:56]}
{[%emt 00:00:41]} Bf4 {[%clk 00:04:33]} {[%emt 00:00:05]} 31. Rf1 {[%clk
00:00:52]} {[%emt 00:00:09]} Qe3 {[%clk 00:04:20]} {[%emt 00:00:18]} 0-1